[Event "*** Titled Tuesday Blitz"]
[Site "Chess.com"]
[Date "2020.12.29"]
[Round "4"]
[White "vladjianu"]
[Black "Pertinhez76"]
[Result "1-0"]
[WhiteElo "2577"]
[BlackElo "2122"]
[TimeControl "180+1"]
[EndTime "10:35:40 PST"]
[Termination "vladjianu won by resignation"]

1. d4 {[%clk 0:03:00.9]} 1... Nf6 {[%clk 0:02:58.3]} 2. Nf3 {[%clk 0:03:01]}
2... d6 {[%clk 0:02:56.7]} 3. g3 {[%clk 0:03:00]} 3... g6 {[%clk 0:02:56.5]} 4.
Bg2 {[%clk 0:03:00.4]} 4... Bg7 {[%clk 0:02:56.4]} 5. O-O {[%clk 0:03:00.1]}
5... O-O {[%clk 0:02:55.9]} 6. b3 {[%clk 0:02:59.9]} 6... c5 {[%clk 0:02:51.5]}
7. Bb2 {[%clk 0:02:46]} 7... Na6 {[%clk 0:02:35.9]} 8. c4 {[%clk 0:02:41.8]}
8... Rb8 {[%clk 0:02:31.2]} 9. Nc3 {[%clk 0:02:40.9]} 9... Bf5 {[%clk
0:02:29.1]} 10. Rc1 {[%clk 0:02:33.4]} 10... Qd7 {[%clk 0:02:13.4]} 11. Qd2
{[%clk 0:02:15.6]} 11... Ne4 {[%clk 0:02:00.6]} 12. Nxe4 {[%clk 0:02:14.2]}
12... Bxe4 {[%clk 0:01:59.6]} 13. Rfd1 {[%clk 0:02:14.3]} 13... cxd4 {[%clk
0:01:55]} 14. Bxd4 {[%clk 0:02:10.3]} 14... Nc5 {[%clk 0:01:45]} 15. Bxc5 {[%clk
0:02:07.7]} 1-0

[Event "*** Titled Tuesday Blitz"]
[Site "Chess.com"]
[Date "2020.12.29"]
[Round "4"]
[White "mat_kolosowski"]
[Black "aa175"]
[Result "1-0"]
[WhiteElo "2698"]
[BlackElo "2372"]
[TimeControl "180+1"]
[EndTime "10:35:51 PST"]
[Termination "mat_kolosowski won by resignation"]

1. e4 {[%clk 0:03:00.9]} 1... c5 {[%clk 0:02:59.7]} 2. Nc3 {[%clk 0:02:58.3]}
2... d6 {[%clk 0:03:00]} 3. f4 {[%clk 0:02:57]} 3... Nf6 {[%clk 0:03:00.2]} 4.
Nf3 {[%clk 0:02:56.7]} 4... g6 {[%clk 0:02:59.3]} 5. Bc4 {[%clk 0:02:56.1]} 5...
Bg7 {[%clk 0:02:59.5]} 6. O-O {[%clk 0:02:55.7]} 6... Nc6 {[%clk 0:02:58.7]} 7.
d3 {[%clk 0:02:56.2]} 7... O-O {[%clk 0:02:57.3]} 8. Qe1 {[%clk 0:02:45.8]} 8...
Ne8 {[%clk 0:02:55.5]} 9. f5 {[%clk 0:02:31.5]} 9... e6 {[%clk 0:01:58.7]} 10.
Bg5 {[%clk 0:02:26.7]} 10... f6 {[%clk 0:01:53.7]} 11. fxe6 {[%clk 0:02:20.8]}
11... Qe7 {[%clk 0:01:50.2]} 12. Nd5 {[%clk 0:02:15.4]} 12... fxg5 {[%clk
0:01:50.4]} 13. Nxe7+ {[%clk 0:02:15.3]} 13... Nxe7 {[%clk 0:01:50.1]} 14. Nxg5
{[%clk 0:02:15.1]} 14... Bd4+ {[%clk 0:01:46.9]} 15. Kh1 {[%clk 0:02:14.5]}
15... Bxb2 {[%clk 0:01:46.6]} 16. Rf7 {[%clk 0:02:02.3]} 16... h6 {[%clk
0:01:24.3]} 17. Nh7 {[%clk 0:01:44.2]} 17... Bxa1 {[%clk 0:01:06.9]} 18. Qxa1
{[%clk 0:01:31.9]} 1-0

[Event "*** Titled Tuesday Blitz"]
[Site "Chess.com"]
[Date "2020.12.29"]
[Round "4"]
[White "DrMamaliga"]
[Black "Isajevsky_Anton"]
[Result "0-1"]
[WhiteElo "2354"]
[BlackElo "2579"]
[TimeControl "180+1"]
[EndTime "10:35:54 PST"]
[Termination "Isajevsky_Anton won by resignation"]

1. c4 {[%clk 0:02:58.6]} 1... c5 {[%clk 0:02:58.1]} 2. Nc3 {[%clk 0:02:55.6]}
2... g6 {[%clk 0:02:58]} 3. Nf3 {[%clk 0:02:53.4]} 3... Bg7 {[%clk 0:02:57.8]}
4. e3 {[%clk 0:02:52.4]} 4... Nf6 {[%clk 0:02:57.2]} 5. d4 {[%clk 0:02:52.1]}
5... cxd4 {[%clk 0:02:56.2]} 6. exd4 {[%clk 0:02:53]} 6... d5 {[%clk 0:02:55.9]}
7. cxd5 {[%clk 0:02:53.2]} 7... Nxd5 {[%clk 0:02:43.1]} 8. Qb3 {[%clk 0:02:52]}
8... Nxc3 {[%clk 0:02:40.9]} 9. bxc3 {[%clk 0:02:52.9]} 9... O-O {[%clk
0:02:39.3]} 10. Be2 {[%clk 0:02:46.4]} 10... Nc6 {[%clk 0:02:38.2]} 11. O-O
{[%clk 0:02:45.4]} 11... b6 {[%clk 0:02:38.3]} 12. Rd1 {[%clk 0:02:40]} 12...
Bb7 {[%clk 0:02:36.1]} 13. Bb2 {[%clk 0:02:37.1]} 13... Rc8 {[%clk 0:02:34.5]}
14. c4 {[%clk 0:02:33]} 14... Na5 {[%clk 0:02:34.1]} 15. Qb4 {[%clk 0:02:29.8]}
15... Bxf3 {[%clk 0:02:07.9]} 16. gxf3 {[%clk 0:02:24.9]} 16... Qd7 {[%clk
0:01:39.5]} 17. d5 {[%clk 0:02:17.5]} 17... Bxb2 {[%clk 0:01:37.7]} 18. Qxb2
{[%clk 0:02:17.9]} 18... Nxc4 {[%clk 0:01:38.1]} 19. Bxc4 {[%clk 0:02:15.6]}
19... Rxc4 {[%clk 0:01:37.8]} 20. d6 {[%clk 0:02:16.5]} 20... exd6 {[%clk
0:01:23.5]} 21. Qf6 {[%clk 0:02:14.5]} 21... d5 {[%clk 0:01:23.6]} 22. Re1
{[%clk 0:02:10.5]} 22... Qh3 {[%clk 0:01:17.3]} 23. Re7 {[%clk 0:01:58]} 23...
Rh4 {[%clk 0:01:07.1]} 24. Qe5 {[%clk 0:01:57.9]} 24... Rh5 {[%clk 0:01:05.5]}
25. Qg3 {[%clk 0:01:55.3]} 25... Qf5 {[%clk 0:01:04.6]} 26. Rae1 {[%clk
0:01:53.8]} 26... Rg5 {[%clk 0:01:03.2]} 0-1

[Event "*** Titled Tuesday Blitz"]
[Site "Chess.com"]
[Date "2020.12.29"]
[Round "4"]
[White "sopo-tereladze"]
[Black "KyrgyzFighter"]
[Result "0-1"]
[WhiteElo "2279"]
[BlackElo "2385"]
[TimeControl "180+1"]
[EndTime "10:35:58 PST"]
[Termination "KyrgyzFighter won by resignation"]

1. e4 {[%clk 0:03:00.9]} 1... e6 {[%clk 0:02:56]} 2. d4 {[%clk 0:02:59.7]} 2...
d5 {[%clk 0:02:56.4]} 3. Nd2 {[%clk 0:03:00.1]} 3... Nc6 {[%clk 0:02:56.4]} 4.
Ngf3 {[%clk 0:02:58.3]} 4... Nf6 {[%clk 0:02:55.8]} 5. Bd3 {[%clk 0:02:57.4]}
5... Nb4 {[%clk 0:02:55.1]} 6. O-O {[%clk 0:02:49.7]} 6... Nxd3 {[%clk
0:02:54.8]} 7. cxd3 {[%clk 0:02:50.6]} 7... Be7 {[%clk 0:02:55.2]} 8. e5 {[%clk
0:02:48.6]} 8... Nd7 {[%clk 0:02:54.9]} 9. h3 {[%clk 0:02:45.3]} 9... O-O {[%clk
0:02:54.5]} 10. Nh2 {[%clk 0:02:45]} 10... b6 {[%clk 0:02:54.7]} 11. f4 {[%clk
0:02:44.4]} 11... c5 {[%clk 0:02:55.3]} 12. dxc5 {[%clk 0:02:43.6]} 12... bxc5
{[%clk 0:02:55.4]} 13. Ng4 {[%clk 0:02:40.1]} 13... Ba6 {[%clk 0:02:54.9]} 14.
Qf3 {[%clk 0:02:38.7]} 14... Qc7 {[%clk 0:02:51.2]} 15. b3 {[%clk 0:02:29.8]}
15... Rad8 {[%clk 0:02:39.1]} 16. Bb2 {[%clk 0:02:29.1]} 16... c4 {[%clk
0:02:39.6]} 17. bxc4 {[%clk 0:02:25.1]} 17... Qb6+ {[%clk 0:02:37.8]} 18. Kh2
{[%clk 0:02:21.5]} 18... Qxb2 {[%clk 0:02:37.1]} 19. Rad1 {[%clk 0:02:15.1]}
19... dxc4 {[%clk 0:02:36.9]} 20. Ne4 {[%clk 0:02:13.8]} 20... cxd3 {[%clk
0:02:35.5]} 21. Qg3 {[%clk 0:02:00.7]} 21... Kh8 {[%clk 0:02:24.8]} 22. f5
{[%clk 0:01:57.4]} 22... exf5 {[%clk 0:02:23]} 23. Rxf5 {[%clk 0:01:58.3]} 23...
Bb7 {[%clk 0:02:22]} 24. Ng5 {[%clk 0:01:52.8]} 24... Bxg5 {[%clk 0:02:17.1]}
25. Rxg5 {[%clk 0:01:53.7]} 25... Nc5 {[%clk 0:02:11.3]} 26. Nf6 {[%clk
0:01:33.2]} 26... Qxg2+ {[%clk 0:02:04.3]} 27. Qxg2 {[%clk 0:01:31.8]} 27...
Bxg2 {[%clk 0:02:04.9]} 28. Rg1 {[%clk 0:01:05.4]} 28... gxf6 {[%clk 0:02:00]}
29. exf6 {[%clk 0:01:06.3]} 29... d2 {[%clk 0:01:59.1]} 0-1

[Event "*** Titled Tuesday Blitz"]
[Site "Chess.com"]
[Date "2020.12.29"]
[Round "4"]
[White "Geller_Jakov"]
[Black "Europe03"]
[Result "1-0"]
[WhiteElo "2606"]
[BlackElo "2324"]
[TimeControl "180+1"]
[EndTime "10:36:12 PST"]
[Termination "Geller_Jakov won by resignation"]

1. e4 {[%clk 0:03:00.9]} 1... e5 {[%clk 0:02:57.1]} 2. Nf3 {[%clk 0:03:00.3]}
2... Nc6 {[%clk 0:02:57]} 3. Bc4 {[%clk 0:03:01]} 3... Bc5 {[%clk 0:02:54.9]} 4.
d3 {[%clk 0:03:01.3]} 4... d6 {[%clk 0:02:52.7]} 5. O-O {[%clk 0:03:01]} 5... h6
{[%clk 0:02:52.4]} 6. c3 {[%clk 0:03:00.2]} 6... Nf6 {[%clk 0:02:51.7]} 7. a4
{[%clk 0:02:58.9]} 7... a5 {[%clk 0:02:51.5]} 8. Re1 {[%clk 0:02:48.9]} 8... O-O
{[%clk 0:02:46.8]} 9. h3 {[%clk 0:02:49]} 9... Bb6 {[%clk 0:02:39.4]} 10. Nbd2
{[%clk 0:02:48.6]} 10... Be6 {[%clk 0:02:36]} 11. Bxe6 {[%clk 0:02:45.1]} 11...
fxe6 {[%clk 0:02:34.9]} 12. Nf1 {[%clk 0:02:45.8]} 12... Qe8 {[%clk 0:02:30.7]}
13. Be3 {[%clk 0:02:45.7]} 13... Bxe3 {[%clk 0:02:28.2]} 14. Rxe3 {[%clk
0:02:46.6]} 14... g5 {[%clk 0:02:27.6]} 15. N1h2 {[%clk 0:02:32.1]} 15... b6
{[%clk 0:02:18.6]} 16. d4 {[%clk 0:02:31.5]} 16... Qg6 {[%clk 0:01:56.9]} 17.
dxe5 {[%clk 0:02:25.7]} 17... dxe5 {[%clk 0:01:55.9]} 18. Qb3 {[%clk 0:02:22.2]}
18... Rae8 {[%clk 0:01:37.4]} 19. Qc4 {[%clk 0:02:17.5]} 19... g4 {[%clk
0:00:55.2]} 20. hxg4 {[%clk 0:02:13.1]} 20... Nxg4 {[%clk 0:00:45.4]} 21. Nxg4
{[%clk 0:02:10.4]} 21... Qxg4 {[%clk 0:00:46.3]} 22. Qxc6 {[%clk 0:02:10.2]}
22... Re7 {[%clk 0:00:43.3]} 23. Nxe5 {[%clk 0:02:05.4]} 23... Qf4 {[%clk
0:00:38.8]} 24. Rg3+ {[%clk 0:02:01.3]} 24... Kh7 {[%clk 0:00:37.4]} 1-0

[Event "*** Titled Tuesday Blitz"]
[Site "Chess.com"]
[Date "2020.12.29"]
[Round "4"]
[White "The_filthy"]
[Black "GameOverBro"]
[Result "1-0"]
[WhiteElo "2305"]
[BlackElo "2457"]
[TimeControl "180+1"]
[EndTime "10:36:12 PST"]
[Termination "The_filthy won by resignation"]

1. e4 {[%clk 0:03:00.9]} 1... Nf6 {[%clk 0:02:59.8]} 2. e5 {[%clk 0:02:58.3]}
2... Nd5 {[%clk 0:02:59.9]} 3. Nc3 {[%clk 0:02:59.2]} 3... Nb6 {[%clk
0:02:59.5]} 4. Nf3 {[%clk 0:02:58.8]} 4... d5 {[%clk 0:03:00]} 5. d4 {[%clk
0:02:58.1]} 5... Bg4 {[%clk 0:02:58.3]} 6. h3 {[%clk 0:02:57.7]} 6... Bxf3
{[%clk 0:02:57.2]} 7. Qxf3 {[%clk 0:02:57.4]} 7... e6 {[%clk 0:02:57.7]} 8. Be3
{[%clk 0:02:51.1]} 8... Be7 {[%clk 0:02:52.4]} 9. O-O-O {[%clk 0:02:31.7]} 9...
a6 {[%clk 0:02:51.1]} 10. g4 {[%clk 0:02:31.8]} 10... c5 {[%clk 0:02:47.1]} 11.
dxc5 {[%clk 0:02:31.5]} 11... N6d7 {[%clk 0:02:47.2]} 12. Kb1 {[%clk 0:02:11.2]}
12... Nc6 {[%clk 0:02:44.7]} 13. Qg2 {[%clk 0:02:07]} 13... Ncxe5 {[%clk
0:02:29]} 14. f4 {[%clk 0:02:06.7]} 14... Nc6 {[%clk 0:02:26.9]} 15. f5 {[%clk
0:02:07.2]} 15... Bxc5 {[%clk 0:02:21.2]} 16. Bxc5 {[%clk 0:01:55.8]} 16... Nxc5
{[%clk 0:02:20.9]} 17. fxe6 {[%clk 0:01:56.3]} 17... fxe6 {[%clk 0:02:19.5]} 18.
g5 {[%clk 0:01:53.7]} 18... O-O {[%clk 0:02:14.2]} 19. h4 {[%clk 0:01:53.7]}
19... d4 {[%clk 0:02:08.4]} 20. Ne4 {[%clk 0:01:49.7]} 20... Nxe4 {[%clk
0:02:01.8]} 21. Qxe4 {[%clk 0:01:49.4]} 21... Qd6 {[%clk 0:01:57.6]} 22. Bd3
{[%clk 0:01:46.9]} 22... g6 {[%clk 0:01:53.8]} 23. h5 {[%clk 0:01:46.6]} 23...
Rf4 {[%clk 0:01:53.7]} 24. Qe2 {[%clk 0:01:41.4]} 24... Ne5 {[%clk 0:01:37.7]}
25. hxg6 {[%clk 0:01:39.1]} 25... hxg6 {[%clk 0:01:15.9]} 26. Qh2 {[%clk
0:01:35.4]} 26... Nxd3 {[%clk 0:01:03.4]} 27. Qh8+ {[%clk 0:01:31.5]} 1-0

[Event "*** Titled Tuesday Blitz"]
[Site "Chess.com"]
[Date "2020.12.29"]
[Round "4"]
[White "AdarshIsMe"]
[Black "Storne89"]
[Result "0-1"]
[WhiteElo "2202"]
[BlackElo "2593"]
[TimeControl "180+1"]
[EndTime "10:36:42 PST"]
[Termination "Storne89 won by resignation"]

1. e4 {[%clk 0:03:00.9]} 1... c5 {[%clk 0:02:59.4]} 2. Ne2 {[%clk 0:02:59.5]}
2... Nc6 {[%clk 0:02:59.2]} 3. Nbc3 {[%clk 0:02:58.1]} 3... g6 {[%clk
0:02:58.7]} 4. d4 {[%clk 0:02:57]} 4... cxd4 {[%clk 0:02:59.6]} 5. Nxd4 {[%clk
0:02:57.6]} 5... Bg7 {[%clk 0:03:00.2]} 6. Be3 {[%clk 0:02:58.1]} 6... Nf6
{[%clk 0:03:00.3]} 7. Bc4 {[%clk 0:02:58.2]} 7... O-O {[%clk 0:02:59.9]} 8. Bb3
{[%clk 0:02:58.1]} 8... Re8 {[%clk 0:02:57.6]} 9. O-O {[%clk 0:02:36.4]} 9... d6
{[%clk 0:02:43.1]} 10. h3 {[%clk 0:02:29.8]} 10... Na5 {[%clk 0:02:41.9]} 11. f4
{[%clk 0:02:22.9]} 11... Nxb3 {[%clk 0:02:36.3]} 12. axb3 {[%clk 0:02:17.5]}
12... b6 {[%clk 0:02:35.6]} 13. Qe2 {[%clk 0:02:01.7]} 13... Bb7 {[%clk
0:02:32.5]} 14. Bf2 {[%clk 0:01:43.8]} 14... e5 {[%clk 0:02:22.8]} 15. fxe5
{[%clk 0:01:26.1]} 15... dxe5 {[%clk 0:02:22.9]} 16. Ndb5 {[%clk 0:01:26.7]}
16... Nh5 {[%clk 0:02:14.8]} 17. Rad1 {[%clk 0:01:24.4]} 17... Nf4 {[%clk
0:02:14.9]} 18. Qc4 {[%clk 0:01:18.3]} 18... Qg5 {[%clk 0:02:13.4]} 19. g3
{[%clk 0:01:01.4]} 19... Rac8 {[%clk 0:01:59.1]} 20. Qb4 {[%clk 0:00:44.7]}
20... Bf8 {[%clk 0:01:44.7]} 21. Qa4 {[%clk 0:00:42.4]} 21... Nxh3+ {[%clk
0:01:41.3]} 22. Kg2 {[%clk 0:00:39.4]} 22... Nf4+ {[%clk 0:01:39.9]} 23. Kf3
{[%clk 0:00:29.2]} 23... Qh5+ {[%clk 0:01:36.8]} 24. g4 {[%clk 0:00:29.3]} 24...
Qh3+ {[%clk 0:01:34.9]} 25. Bg3 {[%clk 0:00:29.7]} 25... Qg2+ {[%clk 0:01:35.2]}
0-1

[Event "*** Titled Tuesday Blitz"]
[Site "Chess.com"]
[Date "2020.12.29"]
[Round "4"]
[White "FlySooHigh"]
[Black "Alexander_Moskalenko"]
[Result "0-1"]
[WhiteElo "2653"]
[BlackElo "2843"]
[TimeControl "180+1"]
[EndTime "10:36:43 PST"]
[Termination "Alexander_Moskalenko won by resignation"]

1. e4 {[%clk 0:03:00.9]} 1... c6 {[%clk 0:02:58.7]} 2. c4 {[%clk 0:03:00.1]}
2... d5 {[%clk 0:02:54.7]} 3. cxd5 {[%clk 0:03:01]} 3... cxd5 {[%clk 0:02:55.6]}
4. exd5 {[%clk 0:03:00.8]} 4... Nf6 {[%clk 0:02:56.3]} 5. Qa4+ {[%clk
0:02:59.9]} 5... Bd7 {[%clk 0:02:51.1]} 6. Qb3 {[%clk 0:02:58.9]} 6... e6 {[%clk
0:02:51.7]} 7. Qxb7 {[%clk 0:02:50.6]} 7... exd5 {[%clk 0:02:51.7]} 8. Qxa8
{[%clk 0:02:36.5]} 8... Bc5 {[%clk 0:02:51.7]} 9. d4 {[%clk 0:02:13.8]} 9... Bb6
{[%clk 0:02:51.6]} 10. a4 {[%clk 0:01:55.5]} 10... O-O {[%clk 0:02:47.5]} 11.
Bb5 {[%clk 0:01:54.1]} 11... Qe7+ {[%clk 0:01:38.1]} 12. Ne2 {[%clk 0:01:49.9]}
12... Nc6 {[%clk 0:01:38.8]} 13. Qb7 {[%clk 0:01:20.1]} 13... Na5 {[%clk
0:01:38.4]} 14. Qxd7 {[%clk 0:00:59.2]} 14... Nxd7 {[%clk 0:01:38.1]} 15. O-O
{[%clk 0:00:59.4]} 15... Nf6 {[%clk 0:01:38.4]} 16. Ra3 {[%clk 0:00:55.7]} 16...
Nc4 {[%clk 0:01:33.4]} 17. Rf3 {[%clk 0:00:52.4]} 17... Qxe2 {[%clk 0:01:32.2]}
18. Nc3 {[%clk 0:00:52.1]} 18... Qe6 {[%clk 0:01:29.3]} 19. Bxc4 {[%clk
0:00:33.3]} 19... dxc4 {[%clk 0:01:29.2]} 20. Be3 {[%clk 0:00:33.3]} 20... Nd5
{[%clk 0:01:28.4]} 0-1

[Event "*** Titled Tuesday Blitz"]
[Site "Chess.com"]
[Date "2020.12.29"]
[Round "4"]
[White "NiranjanNavalgund"]
[Black "NaciSAN"]
[Result "1-0"]
[WhiteElo "2486"]
[BlackElo "2165"]
[TimeControl "180+1"]
[EndTime "10:36:43 PST"]
[Termination "NiranjanNavalgund won by resignation"]

1. e4 {[%clk 0:03:00.9]} 1... e5 {[%clk 0:02:59.9]} 2. Nf3 {[%clk 0:03:00.5]}
2... Nc6 {[%clk 0:03:00.5]} 3. Nc3 {[%clk 0:03:00.4]} 3... Nf6 {[%clk 0:03:00]}
4. d4 {[%clk 0:03:00.6]} 4... d6 {[%clk 0:02:58.9]} 5. Bc4 {[%clk 0:02:54.9]}
5... Be7 {[%clk 0:02:53.7]} 6. dxe5 {[%clk 0:02:53.1]} 6... Nxe5 {[%clk
0:02:53.2]} 7. Nxe5 {[%clk 0:02:52.7]} 7... dxe5 {[%clk 0:02:54.1]} 8. Qxd8+
{[%clk 0:02:52.8]} 8... Bxd8 {[%clk 0:02:55]} 9. Bg5 {[%clk 0:02:52.9]} 9... c6
{[%clk 0:02:54.3]} 10. O-O-O {[%clk 0:02:52.5]} 10... Be7 {[%clk 0:02:54.1]} 11.
f4 {[%clk 0:02:50.7]} 11... Ng4 {[%clk 0:02:52.6]} 12. Rd2 {[%clk 0:02:35.7]}
12... Bxg5 {[%clk 0:02:35.2]} 13. fxg5 {[%clk 0:02:32.8]} 13... Ke7 {[%clk
0:02:25.4]} 14. Bb3 {[%clk 0:02:29.1]} 14... h6 {[%clk 0:02:06.4]} 15. Rf1
{[%clk 0:02:21.3]} 15... Be6 {[%clk 0:01:48.4]} 16. Bxe6 {[%clk 0:01:57.8]}
16... fxe6 {[%clk 0:01:49.3]} 17. g6 {[%clk 0:01:56.2]} 17... Nf6 {[%clk
0:01:47.1]} 18. h4 {[%clk 0:01:40.4]} 18... Rad8 {[%clk 0:01:44.2]} 19. Rdf2
{[%clk 0:01:39.4]} 19... Rhf8 {[%clk 0:01:41.8]} 20. g4 {[%clk 0:01:36.7]} 20...
Kd6 {[%clk 0:00:49.9]} 21. g5 {[%clk 0:01:31.4]} 21... hxg5 {[%clk 0:00:44.4]}
22. hxg5 {[%clk 0:01:31.3]} 22... Nd7 {[%clk 0:00:45.3]} 23. Rf7 {[%clk
0:01:31.3]} 23... Rxf7 {[%clk 0:00:39.9]} 24. gxf7 {[%clk 0:01:31.3]} 24... Rg8
{[%clk 0:00:40.8]} 25. fxg8=Q {[%clk 0:01:26.9]} 1-0

[Event "*** Titled Tuesday Blitz"]
[Site "Chess.com"]
[Date "2020.12.29"]
[Round "4"]
[White "JoAttack"]
[Black "CakeinSpace2002"]
[Result "0-1"]
[WhiteElo "2202"]
[BlackElo "2395"]
[TimeControl "180+1"]
[EndTime "10:36:43 PST"]
[Termination "CakeinSpace2002 won by resignation"]

1. d4 {[%clk 0:03:00.9]} 1... Nf6 {[%clk 0:02:59.7]} 2. c4 {[%clk 0:02:59.4]}
2... g6 {[%clk 0:02:59.5]} 3. Nc3 {[%clk 0:02:58.4]} 3... Bg7 {[%clk 0:02:59.6]}
4. e4 {[%clk 0:02:58.3]} 4... d6 {[%clk 0:02:59.4]} 5. Nf3 {[%clk 0:02:57.9]}
5... O-O {[%clk 0:02:59.5]} 6. Be2 {[%clk 0:02:57.8]} 6... c5 {[%clk 0:02:57.7]}
7. O-O {[%clk 0:02:55.8]} 7... cxd4 {[%clk 0:02:57.1]} 8. Nxd4 {[%clk 0:02:55]}
8... Nc6 {[%clk 0:02:58]} 9. Be3 {[%clk 0:02:53.2]} 9... Bd7 {[%clk 0:02:57.6]}
10. Kh1 {[%clk 0:02:52.1]} 10... Nxd4 {[%clk 0:02:57.5]} 11. Bxd4 {[%clk
0:02:50.4]} 11... Bc6 {[%clk 0:02:58.4]} 12. f3 {[%clk 0:02:49.6]} 12... a5
{[%clk 0:02:57.4]} 13. Nd5 {[%clk 0:02:46.1]} 13... Bxd5 {[%clk 0:02:56.7]} 14.
cxd5 {[%clk 0:02:45]} 14... Nd7 {[%clk 0:02:57.6]} 15. Bxg7 {[%clk 0:02:38.8]}
15... Kxg7 {[%clk 0:02:58.5]} 16. Rc1 {[%clk 0:02:35.7]} 16... Qb6 {[%clk
0:02:58.5]} 17. b3 {[%clk 0:02:28.2]} 17... Rfc8 {[%clk 0:02:58.1]} 18. Qd2
{[%clk 0:02:26.7]} 18... a4 {[%clk 0:02:52.7]} 19. Qb2+ {[%clk 0:02:24.6]} 19...
Kg8 {[%clk 0:02:51.3]} 20. b4 {[%clk 0:02:24.1]} 20... a3 {[%clk 0:02:50.8]} 21.
Qb3 {[%clk 0:02:22.4]} 21... Nf6 {[%clk 0:02:33.9]} 22. Bd3 {[%clk 0:02:06.8]}
22... Qe3 {[%clk 0:02:30.2]} 23. Rce1 {[%clk 0:02:00.5]} 23... Qd2 {[%clk
0:02:28.1]} 24. Re2 {[%clk 0:01:58.2]} 24... Qc3 {[%clk 0:02:25.9]} 25. Qb1
{[%clk 0:01:51.9]} 25... Nd7 {[%clk 0:02:22.9]} 26. f4 {[%clk 0:01:49.8]} 26...
Qd4 {[%clk 0:02:19.8]} 27. Bb5 {[%clk 0:01:44.9]} 27... Nf6 {[%clk 0:02:18.5]}
28. Rd1 {[%clk 0:01:42.1]} 28... Qb6 {[%clk 0:02:17.5]} 29. Bd3 {[%clk
0:01:40.4]} 29... Rc3 {[%clk 0:02:17]} 30. h3 {[%clk 0:01:36.8]} 30... Rac8
{[%clk 0:02:16.4]} 31. Bc2 {[%clk 0:01:31.3]} 31... Re3 {[%clk 0:02:07.7]} 32.
Rde1 {[%clk 0:01:23.9]} 32... Rxe2 {[%clk 0:02:03.9]} 33. Rxe2 {[%clk
0:01:23.5]} 33... Nh5 {[%clk 0:02:04.7]} 34. Kh2 {[%clk 0:01:22.2]} 34... Nxf4
{[%clk 0:02:04.4]} 35. Rd2 {[%clk 0:01:15.9]} 35... Qe3 {[%clk 0:02:01.5]} 36.
Qd1 {[%clk 0:01:13.1]} 36... Rc3 {[%clk 0:01:58.9]} 37. Bb1 {[%clk 0:01:00.2]}
37... Qg3+ {[%clk 0:01:57.9]} 38. Kh1 {[%clk 0:00:56.1]} 38... Re3 {[%clk
0:01:58.4]} 0-1

[Event "*** Titled Tuesday Blitz"]
[Site "Chess.com"]
[Date "2020.12.29"]
[Round "4"]
[White "stasiek18"]
[Black "Vuk2000"]
[Result "0-1"]
[WhiteElo "2379"]
[BlackElo "2809"]
[TimeControl "180+1"]
[EndTime "10:36:46 PST"]
[Termination "Vuk2000 won on time"]

1. e4 {[%clk 0:03:00.9]} 1... c5 {[%clk 0:03:00.3]} 2. Nc3 {[%clk 0:03:01.8]}
2... Nc6 {[%clk 0:02:59.1]} 3. Nge2 {[%clk 0:03:00.9]} 3... g6 {[%clk
0:02:58.9]} 4. g3 {[%clk 0:02:57.8]} 4... Bg7 {[%clk 0:02:59]} 5. Bg2 {[%clk
0:02:58.4]} 5... e6 {[%clk 0:02:58.1]} 6. O-O {[%clk 0:02:57.1]} 6... Nge7
{[%clk 0:02:58.8]} 7. d3 {[%clk 0:02:56.5]} 7... d5 {[%clk 0:02:58.9]} 8. exd5
{[%clk 0:02:43.7]} 8... exd5 {[%clk 0:02:59.8]} 9. Nf4 {[%clk 0:02:44]} 9... d4
{[%clk 0:02:55.8]} 10. Ne4 {[%clk 0:02:39.4]} 10... b6 {[%clk 0:02:55.8]} 11.
Re1 {[%clk 0:02:31.1]} 11... O-O {[%clk 0:02:55.7]} 12. h4 {[%clk 0:02:18.7]}
12... Bb7 {[%clk 0:02:52.3]} 13. Bd2 {[%clk 0:02:04.6]} 13... Qc7 {[%clk
0:02:50.8]} 14. a3 {[%clk 0:01:59.1]} 14... h6 {[%clk 0:02:47.5]} 15. b4 {[%clk
0:01:30.5]} 15... cxb4 {[%clk 0:02:47.3]} 16. axb4 {[%clk 0:01:31.4]} 16... Nf5
{[%clk 0:02:47.6]} 17. Nd5 {[%clk 0:01:23.8]} 17... Qd8 {[%clk 0:02:46.3]} 18.
h5 {[%clk 0:01:14.2]} 18... Ne5 {[%clk 0:02:41.8]} 19. Nef6+ {[%clk 0:00:52.2]}
19... Kh8 {[%clk 0:02:40.1]} 20. Rxe5 {[%clk 0:00:50]} 20... Bxf6 {[%clk
0:02:30.7]} 21. Nxf6 {[%clk 0:00:27.1]} 21... Bxg2 {[%clk 0:02:30.1]} 22. Kxg2
{[%clk 0:00:13.7]} 22... Qxf6 {[%clk 0:02:30]} 23. Qe2 {[%clk 0:00:14.6]} 23...
Ne3+ {[%clk 0:02:30.3]} 24. Rxe3 {[%clk 0:00:13.6]} 24... dxe3 {[%clk
0:02:30.6]} 25. Qxe3 {[%clk 0:00:09.1]} 25... Qxa1 {[%clk 0:02:05.2]} 26. c3
{[%clk 0:00:02.8]} 26... g5 {[%clk 0:02:03.2]} 0-1